bitfinex/quotes_ETHUSD_20260227
["timestamp","ask_amount","ask_price","bid_price","bid_amount"]
[1772194416950,1.446,1963.6,1963.3,0.0011]
[1772194418270,1.446,1963.6,1963.4,0.0011]
[1772194418446,0.001,1963.5,1963.4,0.0011]
[1772194419251,0.001,1963.5,1963.1,49.2488397]
[1772194419252,0.64287439,1963.4,1963.1,49.2488397]
[1772194419460,0.64287439,1963.4,1963.1,31.97794659]
[1772194420044,0.61435428,1963.2,1962.3,0.6310369]
[1772194420349,1.88791515,1963.0,1962.3,1.9050212]
[1772194420557,2.37971567,1962.5,1961.8,0.6310369]
[1772194420862,0.61435428,1962.5,1961.9,28.57298667]
[1772194421064,0.825,1962.4,1961.9,28.57298667]
[1772194421671,0.61435428,1962.5,1961.9,28.57298667]
[1772194421966,0.912,1962.3,1961.9,28.57298667]
[1772194422174,0.912,1962.3,1961.9,29.84725948]
[1772194422765,0.912,1962.3,1961.9,28.57298667]
[1772194423569,1.448,1962.3,1961.9,29.84725007]
[1772194423765,1.448,1962.3,1961.9,28.57298667]
[1772194424274,1.448,1962.3,1961.9,30.47828961]
[1772194424564,1.88827118,1962.5,1961.9,30.47828961]
[1772194424768,1.448,1962.4,1961.9,30.47828961]
[1772194425566,1.448,1962.4,1961.9,29.20402357]
[1772194425787,2.06235428,1962.4,1961.9,28.57298667]
[1772194426252,1.27401518,1962.3,1961.9,16.0]
[1772194426450,1.27401518,1962.3,1961.8,1.2743384]
[1772194426652,1.27401518,1962.3,1961.9,28.57298667]
[1772194427574,0.61435428,1962.2,1961.9,28.57298667]
[1772194429278,1.88843546,1962.2,1961.9,28.57298667]
[1772194429469,0.61435428,1962.2,1961.9,28.57298667]
[1772194430480,1.8884391,1962.2,1962.0,0.0011]
[1772194430680,0.61435428,1962.2,1962.0,0.0011]
[1772194430982,1.452,1962.1,1962.0,0.0011]
[1772194432065,5.09502516,1962.7,1962.0,0.0011]
[1772194432066,0.61435428,1962.6,1962.0,0.0011]
[1772194432271,1.453,1962.5,1962.1,28.57298667]
[1772194432466,0.61435428,1962.6,1962.1,28.57298667]
[1772194432658,1.453,1962.5,1962.2,12.57298667]
[1772194433985,1.27380897,1962.7,1962.2,12.57298667]
[1772194434190,1.27380897,1962.7,1962.1,16.0]
[1772194434191,1.453,1962.6,1962.3,28.57298667]
[1772194434367,1.453,1962.6,1962.2,28.57298667]
[1772194434573,1.453,1962.6,1962.1,28.57298667]
[1772194435989,2.72682931,1962.6,1962.1,29.84708719]
[1772194436191,2.72682931,1962.6,1962.1,30.47812409]
[1772194436388,0.61435428,1962.9,1962.3,0.6310369]
[1772194436574,2.7285812,1963.0,1962.3,0.6310369]
[1772194436893,2.7285812,1963.0,1962.4,29.20402357]
[1772194437185,3.34293548,1963.0,1962.4,0.6310369]
[1772194437965,3.34293548,1963.0,1962.6,1.27382044]
[1772194437966,1.455,1963.0,1962.6,1.27382044]
[1772194438468,0.61435428,1963.2,1962.7,28.57298667]
[1772194438672,1.88778541,1963.2,1962.7,28.57298667]
[1772194438887,1.455,1963.1,1962.7,28.57298667]
[1772194440192,1.88778541,1963.2,1962.7,28.57298667]
[1772194440373,1.456,1963.1,1962.8,16.0]
[1772194441768,2.73131432,1963.4,1962.9,29.20402357]
[1772194441968,2.73131432,1963.4,1962.9,0.6310369]
[1772194442162,0.001,1963.4,1963.0,16.0]
[1772194442388,0.001,1963.4,1963.0,28.57298667]
[1772194442575,1.458,1963.3,1963.0,28.57298667]
[1772194442775,0.61435428,1963.2,1962.6,1.27380989]
[1772194442972,0.61435428,1963.2,1962.6,27.70170573]
[1772194444397,1.273496,1963.1,1962.6,27.70170573]
[1772194444970,1.6102316,1963.1,1962.6,27.70170573]
[1772194446966,0.3367356,1963.1,1962.6,28.9755245]
[1772194447172,1.27345996,1963.2,1962.6,29.68231182]
[1772194447373,1.60552192,1963.2,1962.6,29.68231182]
[1772194447690,0.33206196,1963.1,1962.6,27.70170573]
[1772194448692,0.33206196,1963.1,1962.3,1.9807965]
[1772194448900,1.60406316,1963.0,1962.5,27.70170573]
[1772194449086,1.461,1962.9,1962.5,27.70170573]
[1772194451302,1.462,1962.8,1962.6,0.85180128]
[1772194453294,1.36242736,1962.8,1962.6,2.12558225]
[1772194453695,1.36242736,1962.8,1962.7,27.70170573]
[1772194453992,1.462,1962.9,1962.7,28.55350701]
[1772194455490,1.462,1962.9,1962.7,29.82725515]
[1772194455811,2.7356675,1962.9,1962.7,10.10720669]
[1772194456503,2.7356675,1962.9,1962.6,0.0011]
[1772194456704,2.7356675,1962.9,1962.6,10.10830669]
[1772194459212,2.990856,1962.9,1962.4,0.86859029]
[1772194459410,0.25310986,1962.8,1962.3,0.0011]
[1772194461014,0.25310986,1962.8,1962.3,2.14370347]
[1772194461310,0.25310986,1962.8,1962.3,0.86969029]
[1772194462316,1.27375554,1962.7,1962.3,0.86969029]
[1772194463912,1.27360668,1963.0,1962.4,0.86859029]
[1772194464096,1.467,1962.9,1962.4,0.86859029]
[1772194465009,2.74062735,1962.9,1962.5,0.86859029]
[1772194465212,1.467,1962.9,1962.5,0.86859029]
[1772194465418,0.001,1963.1,1962.5,0.86859029]
[1772194465617,1.467,1962.9,1962.5,0.86859029]
[1772194466615,0.001,1963.1,1962.5,0.86859029]
[1772194466808,0.001,1963.1,1962.6,0.86859029]
[1772194467117,0.001,1963.1,1962.8,0.86859029]
[1772194467612,0.001,1963.1,1962.7,1.27375554]
[1772194467817,0.001,1963.1,1962.8,0.86859029]
[1772194468219,0.825,1963.3,1962.8,0.86809029]
[1772194468831,0.001,1963.4,1962.8,0.86809029]
[1772194469120,1.467,1963.4,1963.0,0.86809029]
[1772194470524,0.001,1963.4,1963.0,0.86809029]
[1772194471232,0.001,1963.4,1963.1,2.14158629]
[1772194471401,0.001,1963.4,1963.2,0.86809029]
[1772194473625,0.001,1963.4,1963.1,1.27346179]
[1772194473828,0.37058546,1963.4,1963.0,0.86809029]
[1772194474036,0.37058546,1963.4,1963.0,2.14164669]
[1772194474394,0.001,1963.4,1963.1,0.86809029]
[1772194474636,0.001,1963.4,1963.0,1.2735564]
[1772194474843,0.001,1963.4,1963.0,2.14164669]
[1772194475017,0.001,1963.4,1963.1,0.86809029]
[1772194475602,0.001,1963.4,1963.2,1.27343113]
[1772194476196,0.001,1963.4,1962.9,1.27358078]
[1772194476440,0.36301231,1963.4,1962.9,1.27358078]
[1772194477722,0.36301231,1963.4,1962.9,0.97134424]
[1772194478021,1.63632574,1963.4,1962.9,0.97134424]
[1772194478454,0.36301231,1963.4,1962.9,0.97134424]
[1772194478826,0.001,1963.4,1962.9,0.97134424]
[1772194479647,0.001,1963.4,1963.0,1.27356087]
[1772194479840,0.001,1963.4,1963.0,2.24490511]
[1772194480724,0.001,1963.4,1963.0,2.24600511]
[1772194480929,0.001,1963.3,1963.0,2.24600511]
[1772194481313,0.001,1963.4,1963.1,0.95670285]
[1772194481846,0.001,1963.4,1963.1,2.23014535]
[1772194482221,0.001,1963.4,1963.2,0.95670285]
[1772194484351,0.001,1963.4,1963.2,2.2300976]
[1772194489645,0.001,1963.4,1963.2,0.95670285]
[1772194489827,0.001,1963.4,1963.0,2.23132679]
[1772194490753,0.001,1963.4,1963.1,0.95670285]
[1772194491248,0.001,1963.4,1963.1,2.230143]
[1772194491653,0.001,1963.4,1963.2,0.95670285]
[1772194493456,0.001,1963.4,1963.0,0.95780285]
[1772194493663,0.001,1963.4,1963.0,2.23135815]
[1772194494348,0.32262148,1963.4,1963.0,0.95780285]
[1772194494521,0.32262148,1963.4,1963.3,0.0011]
[1772194495749,1.59592289,1963.4,1963.3,0.0011]
[1772194495929,1.27430141,1963.4,1963.3,0.0011]
[1772194496139,1.464,1963.5,1963.4,0.95670285]
[1772194496445,1.464,1963.5,1963.3,0.0011]
[1772194497253,2.73723988,1963.5,1963.3,0.0011]
[1772194498936,2.73723988,1963.5,1963.2,0.81131596]
[1772194499137,2.73723988,1963.5,1963.1,0.95670285]
[1772194499337,3.09078012,1963.5,1963.1,0.95670285]
[1772194500441,1.464,1963.5,1963.2,0.95670285]
[1772194500644,1.464,1963.5,1963.4,0.95670285]
[1772194501158,1.469,1963.8,1963.4,0.95670285]
[1772194501356,1.27310689,1963.7,1963.2,0.95670285]
[1772194501656,1.27310689,1963.7,1963.3,0.95670285]
[1772194502731,4.03662391,1963.8,1963.3,0.95670285]
[1772194502957,3.0955823,1963.8,1963.3,0.95670285]
[1772194503254,1.29458185,1963.6,1963.1,0.95670285]
[1772194503434,0.94104161,1963.4,1963.0,0.0011]
[1772194503630,2.41104161,1963.3,1962.9,0.0011]
[1772194503831,1.47,1963.3,1962.9,2.23142239]
[1772194504159,1.47,1963.3,1962.9,0.95780285]
[1772194504664,0.35354024,1963.4,1963.0,0.95670285]
[1772194504840,5.09294626,1963.6,1963.1,0.95670285]
[1772194504841,0.44371851,1963.3,1963.1,0.95670285]
[1772194505786,0.44371851,1963.3,1963.0,1.27355114]
[1772194505942,1.27327718,1963.5,1963.1,0.95670285]
[1772194506138,1.47,1963.4,1963.1,0.95670285]
[1772194508653,1.473,1963.8,1963.2,0.95670285]
[1772194508851,1.473,1963.8,1963.2,0.95780285]
[1772194508852,2.74604361,1963.8,1963.2,0.95780285]
[1772194509057,0.001,1963.3,1963.2,0.95780285]
[1772194509368,2.74604361,1963.8,1963.3,0.95670285]
[1772194509675,3.68708522,1963.8,1963.3,0.95670285]
[1772194511546,3.68708522,1963.8,1963.3,2.2300199]
[1772194511746,3.68708522,1963.8,1963.4,0.97970069]
[1772194513478,1.475,1963.7,1963.4,0.97970069]
[1772194514170,0.93125516,1963.6,1963.2,0.98080069]
[1772194514475,0.93125516,1963.6,1963.2,0.0011]
[1772194515075,1.475,1963.7,1963.3,0.97970069]
[1772194515278,2.74811082,1963.7,1963.3,0.97970069]
[1772194515473,3.67936598,1963.7,1963.3,0.97970069]
[1772194515864,0.93125516,1963.7,1963.3,2.25305517]
[1772194516062,1.477,1963.7,1963.3,2.25305517]
[1772194516366,0.93125516,1963.9,1963.4,0.97970069]
[1772194516548,0.001,1964.1,1963.4,0.97970069]
[1772194517578,0.93125516,1964.0,1963.4,0.97970069]
[1772194517881,2.40825516,1963.9,1963.4,0.97970069]
[1772194518177,2.40825516,1963.9,1963.5,1.27323656]
[1772194518386,2.40825516,1963.9,1963.5,2.25293725]
[1772194518762,0.93125516,1963.8,1963.3,0.97970069]
[1772194519265,0.93125516,1963.8,1963.3,2.25306118]
[1772194519770,0.93125516,1963.8,1963.2,0.0011]
[1772194520173,1.27310689,1963.7,1963.2,0.0011]
[1772194520357,0.93125516,1963.6,1963.2,0.0011]
[1772194520678,2.40825516,1963.5,1963.2,0.0011]
[1772194520860,0.93125516,1963.4,1963.2,0.0011]
[1772194521178,1.477,1963.5,1963.2,0.0011]
[1772194521382,0.93125516,1963.7,1963.2,0.98080069]
[1772194521757,1.478,1963.6,1963.2,0.98080069]
[1772194521955,1.478,1963.6,1963.4,0.0011]
[1772194522356,2.7512046,1963.6,1963.4,0.0011]
[1772194522556,1.478,1963.6,1963.4,0.0011]
[1772194522851,1.479,1963.6,1963.4,0.0011]
[1772194523076,0.93125516,1963.7,1963.4,0.0011]
[1772194523282,0.001,1963.8,1963.4,0.98080069]
[1772194523464,1.479,1963.7,1963.4,0.98080069]
[1772194523666,0.93125516,1963.6,1963.4,0.0011]
[1772194524486,2.2044355,1963.6,1963.4,0.0011]
[1772194525184,0.93125516,1963.6,1963.4,0.0011]
[1772194525382,2.20443891,1963.6,1963.4,0.0011]
[1772194525756,0.93125516,1963.6,1963.4,0.0011]
[1772194526096,2.20443417,1963.6,1963.4,0.0011]
[1772194526596,0.93125516,1963.6,1963.4,0.0011]
[1772194526800,2.20442943,1963.6,1963.4,0.0011]
[1772194529387,1.484,1963.6,1963.4,0.98080069]
[1772194529980,1.485,1963.6,1963.4,0.98080069]
[1772194531088,1.485,1963.6,1963.4,2.25409278]
[1772194531390,1.485,1963.6,1963.4,0.98080069]
[1772194531893,1.485,1963.6,1963.4,2.25409388]
[1772194532186,1.485,1963.6,1963.4,0.98080069]
[1772194533691,1.28481457,1963.5,1963.2,0.0011]
[1772194533875,2.75817376,1963.6,1963.2,0.0011]
[1772194534080,3.68942892,1963.6,1963.2,0.0011]
[1772194534877,3.68942892,1963.6,1963.0,0.0011]
[1772194534878,0.93125516,1963.5,1963.0,0.0011]
[1772194535279,2.20453196,1963.5,1963.3,0.0011]
[1772194536285,0.93125516,1963.4,1963.0,0.0011]
[1772194536482,1.488,1963.3,1963.0,0.0022]
[1772194536675,2.41925516,1963.3,1963.0,0.0022]
[1772194537479,1.27343113,1963.2,1963.0,0.0022]
[1772194539602,0.96905353,1963.1,1962.7,0.0011]
[1772194539791,1.27343113,1963.2,1962.7,0.0011]
[1772194539792,0.96905353,1962.9,1962.7,0.0011]
[1772194541472,0.96905353,1962.9,1962.6,0.0011]
[1772194541876,1.27369064,1962.8,1962.6,0.0011]
[1772194542383,2.24272138,1962.9,1962.6,0.0011]
[1772194544428,0.95385956,1963.3,1962.7,1.28870421]
[1772194544725,1.495,1963.2,1962.8,0.9351448]
[1772194544888,2.44885956,1963.2,1962.8,0.9351448]
[1772194545619,0.95385956,1963.1,1962.6,0.0011]
[1772194546410,1.27356087,1963.0,1962.6,0.0011]
[1772194546600,1.495,1962.9,1962.6,0.0011]
[1772194547307,1.495,1962.9,1962.8,0.0011]
[1772194547515,2.44885956,1962.9,1962.6,0.0011]
[1772194549197,1.27369064,1962.8,1962.6,0.0011]
[1772194551021,1.2736689,1962.9,1962.6,0.0011]
[1772194551224,2.7726689,1962.9,1962.6,0.0011]
[1772194552030,1.499,1962.9,1962.6,0.9362448]
[1772194552204,1.501,1963.0,1962.6,0.9362448]
[1772194553611,2.7745633,1963.0,1962.7,0.9351448]
[1772194554230,1.501,1963.0,1962.7,0.9351448]
[1772194554635,2.77456383,1963.0,1962.7,0.9351448]
[1772194555832,0.95385956,1962.9,1962.6,0.0011]
[1772194557936,0.95385956,1962.7,1962.5,0.0011]
[1772194558112,1.504,1962.6,1962.5,0.0011]
[1772194559111,2.45785956,1962.6,1962.5,0.0011]
[1772194559739,0.95385956,1962.5,1962.4,0.0011]
[1772194559944,2.22774491,1962.5,1962.4,0.0011]
[1772194560645,1.27388535,1962.5,1962.4,0.0011]
[1772194560816,0.001,1962.8,1962.4,0.0011]
[1772194561155,2.2281366,1963.5,1962.7,0.9351448]
[1772194561648,0.001,1963.5,1962.7,0.9351448]
[1772194561830,0.001,1963.5,1963.0,0.9351448]
[1772194563526,1.508,1963.5,1963.0,0.9351448]
[1772194563729,1.508,1963.5,1962.8,5.09450303]
[1772194563730,2.46185956,1963.5,1962.8,0.9351448]
[1772194563929,0.001,1963.5,1962.9,0.9351448]
[1772194564138,1.507,1963.4,1962.9,0.9351448]
[1772194564939,0.95385956,1963.3,1962.6,4.87798926]
[1772194565145,1.507,1963.4,1962.7,0.9351448]
[1772194566038,1.27336627,1963.3,1962.7,2.20885587]
[1772194566651,1.27336627,1963.3,1962.6,1.27376679]
[1772194566652,0.95385956,1963.2,1962.6,1.27376679]
[1772194566954,0.95385956,1963.2,1962.6,2.20891159]
[1772194567543,0.95385956,1963.2,1962.6,1.27376679]
[1772194567746,1.27336627,1963.3,1962.7,0.9351448]
[1772194567946,1.507,1963.2,1962.7,0.9351448]
[1772194568141,1.507,1963.2,1962.8,2.20883544]
[1772194569355,1.507,1963.4,1962.8,2.20883544]
[1772194570032,1.507,1963.4,1962.9,0.89436316]
[1772194570634,3.73434546,1963.4,1962.9,2.16794757]
[1772194571356,2.22834546,1963.4,1962.9,2.16794757]
[1772194571551,3.73534546,1963.4,1962.9,2.16794757]
[1772194573239,0.95403203,1963.3,1962.7,0.0011]
[1772194573463,0.95403203,1963.3,1962.7,1.2748439]
[1772194573958,2.46203203,1963.2,1962.7,1.2748439]
[1772194574332,2.22834546,1963.4,1962.8,0.89436316]
[1772194574536,1.27431343,1963.4,1962.8,0.89436316]
[1772194574854,0.95403203,1963.3,1962.8,0.89436316]
[1772194575462,2.22834546,1963.4,1962.8,2.16802353]
[1772194575630,1.508,1963.3,1962.8,2.16802353]
[1772194577367,2.22834546,1963.4,1962.8,2.16802353]
[1772194577668,1.509,1963.3,1962.8,2.16802353]
[1772194578163,2.46303203,1963.3,1962.8,0.89436316]
[1772194578335,2.46303203,1963.3,1962.7,0.0011]
[1772194578336,0.95403203,1963.2,1962.7,0.0011]
[1772194579455,2.22751405,1963.2,1962.7,0.89546316]
[1772194579659,0.95403203,1963.2,1962.7,0.89546316]
[1772194580472,2.22746949,1963.2,1962.7,0.89546316]
[1772194580777,0.95403203,1963.1,1962.7,0.0011]
[1772194581079,0.95403203,1963.1,1962.5,0.0011]
[1772194581376,0.95403203,1962.7,1962.0,2.16963562]
[1772194581673,1.509,1962.7,1962.1,0.89436316]
[1772194582460,1.509,1962.7,1962.0,0.0011]
[1772194582461,0.95403203,1962.6,1962.0,0.0011]
[1772194583377,2.78294945,1962.5,1962.0,0.0011]
[1772194583776,1.509,1962.5,1962.0,0.0011]
[1772194583977,2.78288948,1962.5,1962.0,0.89546316]
[1772194585075,0.95403203,1962.4,1962.0,0.0011]
[1772194585449,0.95403203,1962.2,1962.0,0.0011]
[1772194586369,1.27401518,1962.3,1962.0,0.0011]
[1772194586370,2.46503203,1962.1,1962.0,0.0011]
[1772194586564,1.511,1962.1,1962.0,0.0011]
[1772194587195,1.511,1962.1,1961.9,0.0011]
[1772194587396,2.46503203,1962.1,1961.9,0.0011]
[1772194587797,1.27420998,1962.0,1961.9,0.0011]
[1772194588194,2.22824201,1962.0,1961.9,0.0011]
[1772194591004,0.95403203,1961.9,1961.3,0.89546316]
[1772194591316,2.47103203,1961.8,1961.3,0.89546316]
[1772194591598,0.95403203,1961.7,1961.3,0.0011]
[1772194591765,1.517,1961.8,1961.3,1.27576116]
[1772194591971,2.47103203,1961.8,1961.3,0.89546316]
[1772194592279,3.74538774,1961.8,1961.3,0.89546316]
[1772194592797,1.517,1961.7,1961.3,0.89546316]
[1772194593377,2.22838774,1961.8,1961.3,0.89546316]
[1772194593585,1.517,1961.7,1961.3,0.89546316]
[1772194594318,2.79145664,1961.7,1961.3,0.89546316]
[1772194594487,0.95403203,1961.6,1961.3,0.0011]
[1772194595006,1.518,1961.6,1961.3,2.17012682]
[1772194595204,1.518,1961.6,1961.3,0.89546316]
[1772194595580,1.518,1961.6,1961.4,0.0011]
[1772194597087,3.74650364,1961.6,1961.4,0.0011]
[1772194597484,2.47203203,1961.6,1961.4,0.0011]
[1772194597785,3.74650655,1961.6,1961.4,0.0011]
[1772194597984,1.518,1961.6,1961.4,0.0011]
[1772194598191,7.57164429,1962.5,1961.4,0.0011]
[1772194598192,1.52,1961.7,1961.4,0.86517529]
[1772194598603,1.52,1961.7,1961.4,2.13975758]
[1772194598905,1.52,1961.7,1961.4,0.86517529]
[1772194599482,1.52,1961.7,1961.4,2.13976587]
[1772194600194,1.52,1961.8,1961.4,2.13976587]
[1772194600504,2.39816567,1961.8,1961.4,0.0011]
[1772194601810,3.67250852,1961.8,1961.4,0.0011]
[1772194602132,2.39816567,1961.8,1961.4,0.0011]
[1772194602307,3.67250935,1961.8,1961.4,0.0011]
[1772194602626,2.39816567,1961.8,1961.4,0.0011]
[1772194602835,3.67250607,1961.8,1961.4,0.0011]
[1772194603135,2.39816567,1961.8,1961.4,0.0011]
[1772194603811,1.521,1962.1,1961.4,0.84968051]
[1772194604712,2.39916567,1962.1,1961.4,0.84968051]
[1772194604918,1.521,1962.1,1961.4,0.84968051]
[1772194605112,0.87816567,1962.0,1961.4,0.84968051]
[1772194605914,2.15241669,1962.0,1961.5,1.27453479]
[1772194606232,2.15241669,1962.0,1961.5,2.1231153]
[1772194607329,2.15341669,1962.0,1961.5,2.1231153]
[1772194607731,3.67441669,1962.0,1961.5,2.1231153]
[1772194608736,2.40016567,1962.0,1961.5,2.1231153]
[1772194608924,2.79604298,1962.3,1961.7,0.84858051]
[1772194610321,2.79604298,1962.3,1961.8,2.1229204]
[1772194610520,0.87816567,1962.6,1961.9,0.84858051]
[1772194610833,1.522,1962.4,1961.9,0.84858051]
[1772194612112,0.87816567,1962.3,1961.7,0.84858051]
[1772194612308,2.40016567,1962.3,1961.8,0.84858051]
[1772194612523,0.87816567,1962.2,1961.8,0.84858051]
[1772194614017,0.87816567,1962.2,1961.6,2.12301448]
[1772194614325,2.15231071,1962.1,1961.6,2.12304717]
[1772194614531,0.87816567,1962.0,1961.4,0.84968051]
[1772194614739,0.87816567,1961.8,1961.4,0.0011]
[1772194615543,0.87816567,1961.8,1961.4,1.27569746]
[1772194616648,1.27435072,1961.8,1961.4,0.84968051]
[1772194617344,1.27434031,1961.8,1961.4,0.84968051]
[1772194618841,1.27434031,1961.8,1961.5,0.0011]
[1772194619875,3.67448404,1961.9,1961.5,0.0011]
[1772194620041,3.67448404,1961.9,1961.5,0.84968051]
[1772194620239,0.87816567,1961.8,1961.5,0.0011]
[1772194620952,1.27440485,1961.7,1961.5,0.0011]
[1772194621125,2.15257052,1961.7,1961.5,0.0011]
[1772194621323,0.87816567,1961.6,1961.4,0.0011]
[1772194621534,0.87816567,1961.4,1961.0,0.0011]
[1772194621846,3.93213189,1961.7,1961.0,0.0044]
[1772194621847,1.524,1961.3,1961.0,0.0044]
[1772194622023,1.524,1961.4,1961.1,0.85188051]
[1772194622738,0.87816567,1961.3,1961.0,0.0011]
[1772194622925,1.27472975,1961.2,1961.0,0.0011]
[1772194623120,1.524,1961.2,1961.0,0.0044]
[1772194623321,1.524,1961.2,1960.7,2.12363399]
[1772194623322,1.524,1961.1,1960.5,0.84858051]
[1772194623548,1.524,1961.0,1960.6,0.84858051]
[1772194624130,1.524,1961.0,1960.7,0.0033]
[1772194624455,2.40216567,1961.0,1960.7,0.0033]
[1772194625246,2.15302595,1961.0,1960.7,0.0033]
[1772194625442,3.67602595,1961.0,1960.7,0.0033]
[1772194625842,8.67602595,1961.0,1960.7,0.0033]
[1772194626456,8.67602595,1961.0,1960.5,0.84858051]
[1772194626757,1.525,1960.9,1960.6,0.85188051]
[1772194626964,1.525,1960.9,1960.6,0.0033]
[1772194627256,2.15311622,1960.9,1960.4,2.1237885]
[1772194627437,1.526,1960.8,1960.5,0.0033]
[1772194628769,0.87816567,1960.7,1960.2,0.84858051]
[1772194628947,1.528,1960.8,1960.5,0.84858051]
[1772194630564,1.528,1960.8,1960.6,0.0011]
[1772194631874,1.528,1960.8,1960.6,0.0044]
[1772194632071,2.10295887,1960.9,1960.6,0.0044]
[1772194632376,1.531,1960.8,1960.7,0.0033]
[1772194632948,1.531,1960.8,1959.8,0.78530217]
[1772194632949,4.9989,1960.0,1959.8,0.78530217]
[1772194633270,4.76394693,1960.0,1959.9,0.0033]
[1772194633477,4.76064693,1960.0,1959.6,2.06105681]
[1772194633673,4.76064693,1960.0,1959.6,2.06106641]
[1772194633854,4.76064693,1960.0,1959.7,0.35450973]
[1772194634272,4.76064693,1960.0,1959.7,1.27569647]
[1772194634854,2.10317925,1960.6,1960.0,0.78530217]
[1772194635054,6.29364693,1960.5,1960.1,1.1398119]
[1772194635366,6.29364693,1960.6,1960.1,0.78530217]
[1772194635570,5.58867718,1960.7,1960.1,0.78530217]
[1772194635753,1.533,1960.6,1960.1,0.78530217]
[1772194636178,5.58867718,1960.7,1960.2,1.27538006]
[1772194636366,1.534,1960.7,1960.3,0.78530217]
[1772194637679,2.10287088,1961.1,1960.3,0.78530217]
[1772194638177,2.10287088,1961.1,1960.4,2.06055211]
[1772194638382,5.58867718,1961.0,1960.4,2.06055211]
[1772194638702,0.82803025,1960.8,1959.7,0.78530217]
[1772194639076,0.82803025,1960.8,1959.9,0.78530217]
[1772194639302,4.76064693,1960.7,1959.9,0.78530217]
[1772194639672,5.58867718,1960.6,1959.9,0.78530217]
[1772194639890,1.533,1960.5,1959.9,0.78530217]
[1772194640368,1.533,1960.5,1960.0,1.2755102]
[1772194640794,4.76064693,1960.4,1960.1,0.78530217]
[1772194641674,2.10306579,1960.8,1960.1,0.78530217]
[1772194641675,2.10302429,1960.8,1960.1,0.78530217]
[1772194641875,0.82803025,1960.8,1960.1,0.78530217]
[1772194642196,2.10302007,1960.8,1960.1,0.78530217]
[1772194642601,0.82803025,1960.6,1959.9,0.78530217]
[1772194643199,5.58867718,1960.5,1959.9,0.78530217]
[1772194643501,0.82803025,1960.5,1959.9,0.78530217]
[1772194643882,5.58967718,1960.7,1959.9,0.78530217]
[1772194644099,4.76064693,1960.6,1959.9,0.78530217]
[1772194644673,4.76064693,1960.6,1960.0,1.2755102]
[1772194644995,1.532,1960.5,1959.9,2.06083061]
[1772194645200,1.532,1960.5,1959.8,5.10245324]
[1772194645201,0.82803025,1960.4,1959.8,1.27564037]
[1772194645595,6.29264693,1960.5,1959.6,1.27686192]
[1772194645596,0.82803025,1960.2,1959.6,1.27686192]
[1772194645797,0.82803025,1960.2,1959.6,1.27686735]
[1772194646186,3.3051096,1960.5,1959.6,0.0011]
[1772194646187,0.82803025,1960.0,1959.6,0.0011]
[1772194646393,2.36003025,1960.0,1959.6,0.0011]
[1772194646724,4.76064693,1959.9,1959.6,0.0011]
[1772194646880,4.76064693,1959.9,1959.6,0.78640217]
[1772194647221,5.10117068,1960.4,1959.6,0.78640217]
[1772194647222,1.532,1960.1,1959.6,0.78640217]
[1772194648481,0.82803025,1960.0,1959.6,0.0011]
[1772194648792,2.10358911,1960.0,1959.6,0.0011]
[1772194649296,0.82803025,1959.9,1959.6,0.0011]
[1772194649509,2.10358911,1960.0,1959.6,0.0011]
[1772194649808,0.82803025,1959.9,1959.6,0.0011]
[1772194649981,0.82803025,1959.9,1959.5,0.0011]
[1772194651118,2.10367062,1959.8,1959.5,0.0011]
[1772194651306,1.534,1959.7,1959.5,0.0011]
[1772194651503,2.36203025,1959.7,1959.5,0.0011]
[1772194652321,1.535,1959.7,1959.5,0.0011]
[1772194652619,1.7731096,1960.1,1959.5,0.0011]
[1772194652620,1.009,1959.9,1959.5,0.0011]
[1772194652784,1.83703025,1959.9,1959.5,0.0011]
[1772194652983,1.535,1959.8,1959.5,0.0011]
[1772194653493,1.535,1959.8,1959.5,0.78640217]
[1772194654512,1.535,1959.8,1959.5,0.0011]
[1772194654885,0.82803025,1960.1,1959.4,0.78530217]
[1772194655086,1.535,1960.5,1959.5,0.78530217]
[1772194655493,2.8101907,1960.5,1959.7,0.78530217]
[1772194656226,1.535,1960.4,1959.7,0.78530217]
[1772194656386,1.535,1960.5,1959.7,0.78530217]
[1772194657002,1.534,1960.6,1959.8,0.78530217]
[1772194657310,0.001,1960.7,1959.8,0.78530217]
[1772194657693,0.001,1960.7,1960.0,0.78530217]
[1772194659697,0.001,1960.7,1960.1,2.13998773]
[1772194660414,0.001,1960.7,1960.0,1.27545711]
[1772194660415,0.81855775,1960.7,1960.0,1.27545711]
[1772194660594,0.81855775,1960.7,1960.0,2.11629227]
[1772194661403,0.81855775,1960.7,1960.0,1.27545711]
[1772194661815,2.09267761,1960.6,1960.0,1.27545711]
[1772194662016,0.81755775,1960.5,1960.0,1.27545711]
[1772194662218,1.533,1960.4,1960.0,1.27545711]
[1772194663738,0.81755775,1960.5,1960.0,1.27545711]
[1772194664038,0.001,1960.7,1960.1,0.84083516]
[1772194664400,0.001,1960.7,1960.2,0.84083516]
[1772194665820,0.001,1960.7,1960.2,2.11616334]
[1772194666832,0.001,1960.7,1960.3,0.84083516]
[1772194667900,0.001,1960.7,1960.5,0.84083516]
[1772194668115,0.001,1960.7,1960.4,1.27524994]
[1772194668493,0.001,1960.6,1960.4,1.27524994]
[1772194668715,0.001,1960.7,1960.4,2.1160851]
[1772194668918,0.001,1960.7,1960.5,0.84083516]
[1772194670324,0.001,1960.7,1960.6,2.11595502]
[1772194670822,0.001,1961.2,1960.7,0.84083516]
[1772194671632,0.81755775,1961.5,1960.8,0.84083516]
[1772194671832,1.7731096,1961.7,1960.6,2.11595502]
[1772194672034,0.81755775,1961.6,1960.6,2.11595502]
[1772194673135,0.81755775,1961.4,1960.6,2.11595502]
[1772194673338,0.81755775,1961.3,1960.6,2.11595502]
[1772194675144,1.27472975,1961.2,1960.6,2.11595502]
[1772194675322,2.0922875,1961.2,1960.6,0.84083516]
[1772194675636,0.81755775,1961.1,1960.5,1.27514014]
[1772194675834,0.81755775,1961.1,1960.5,2.1159753]
[1772194676248,0.81755775,1961.1,1960.6,0.84083516]
[1772194676451,2.09226353,1961.3,1960.6,0.84083516]
[1772194676658,1.527,1961.2,1960.6,0.84083516]
[1772194677160,2.09226353,1961.3,1960.7,1.27505482]
[1772194677338,1.527,1961.2,1960.7,1.27505482]
[1772194677940,0.22301417,1960.7,1959.8,0.84083516]